fUSD/lending_fUSD_20240917
["ID","MTS","AMOUNT","RATE_DAILY","PERIOD"]
[338407005,1726600240849,-700.0,0.00014308,2]
[338407006,1726600240858,-1000.0,0.00014308,2]
[338407007,1726600240867,-5768.58822118,0.00014322,2]
[338407008,1726600241191,-840.0,0.00014362,2]
[338407009,1726600241205,-203.22,0.00014384,2]
[338407010,1726600241215,-459.0,0.000144,4]
[338407011,1726600241225,-1000.0,0.000144,4]
[338407012,1726600241234,-600.0,0.000144,5]
[338407013,1726600241244,-297.11,0.00014462,2]
[338407014,1726600241254,-5768.58822118,0.00014467,2]
[338407015,1726600241264,-1000.0,0.0001447,2]
[338407016,1726600241274,-500.0,0.0001447,2]
[338407017,1726600241284,-2298.94335755,0.00014478,2]
[338407018,1726600241294,-131574.689894,0.0001448,2]
[338407019,1726600241303,-158.31767819,0.0001448,2]
[338407020,1726600241313,-151.97,0.0001448,2]
[338407021,1726600241323,-500.0,0.00014489,2]
[338407022,1726600241332,-646.7836475,0.00014489,2]
[338407023,1726600241342,-500.0,0.00014489,2]
[338407024,1726600241352,-500.0,0.00014489,2]
[338407025,1726600241361,-500.0,0.00014489,2]
[338407026,1726600241370,-500.0,0.00014489,2]
[338407027,1726600241379,-500.0,0.00014489,2]
[338407028,1726600241389,-500.0,0.00014489,2]
[338407029,1726600241399,-500.0,0.00014489,2]
[338407030,1726600241408,-227.04367709,0.00014489,2]
[338407031,1726600241418,-1001.6733,0.00014489,2]
[338407032,1726600241427,-250000.0,0.0001449,2]
[338407033,1726600241437,-151.0,0.0001449,2]
[338407034,1726600241449,-151.0,0.0001449,2]
[338407035,1726600241459,-151.0,0.0001449,2]
[338407036,1726600241469,-151.0,0.0001449,2]
[338407037,1726600241479,-151.0,0.0001449,2]
[338407038,1726600241489,-151.0,0.0001449,2]
[338407039,1726600241501,-151.0,0.0001449,2]
[338407040,1726600241510,-151.0,0.0001449,2]
[338407041,1726600241519,-11961.335445,0.0001449,2]
[338407042,1726600241529,-21613.4475379,0.0001449,2]
[338407043,1726600241540,-167.0,0.00014499,2]
[338407044,1726600241549,-445.0,0.000145,4]
[338407045,1726600241558,-1000.0,0.000145,4]
[338407046,1726600241568,-16023.03960806,0.000145,2]
[338407047,1726600241578,-600.0,0.000145,5]
[338407048,1726600241588,-901.77,0.00014521,2]
[338407049,1726600241598,-1000.0,0.00014521,2]
[338407050,1726600241607,-2460.57160638,0.00014599,2]
[338407051,1726600241616,-416.241229,0.000146,2]
[338407052,1726600241625,-600.0,0.000146,5]
[338407053,1726600241635,-5768.58822118,0.00014611,2]
[338407054,1726600241645,-269.38,0.00014633,2]
[338407055,1726600241654,-150.0,0.00014633,2]
[338407056,1726600241663,-150.0,0.00014633,2]
[338407057,1726600241673,-150.0,0.00014633,2]
[338407058,1726600241682,-150.0,0.00014633,2]
[338407059,1726600241693,-11961.335445,0.0001465,2]
[338407060,1726600241702,-159.44630467,0.0001466,2]
[338407061,1726600241712,-21613.4475379,0.0001466,2]
[338407062,1726600241721,-11961.335445,0.0001466,2]
[338407063,1726600241731,-1000.0,0.0001467,2]
[338407064,1726600241741,-500.0,0.0001467,2]
[338407065,1726600241750,-1402.3649,0.0001467,2]
[338407066,1726600241760,-5705.2097,0.0001467,2]
[338407067,1726600241769,-11961.335445,0.0001467,2]
[338407068,1726600241779,-950.55714218,0.0001468,2]
[338407069,1726600241788,-1110.11249992,0.0001468,2]
[338407070,1726600241798,-11961.335445,0.0001468,2]
[338407071,1726600241807,-11961.335445,0.0001469,2]
[338407072,1726600241816,-21613.4475379,0.0001469,2]
[338407073,1726600241826,-1000.0,0.000147,2]
[338407074,1726600241836,-1000.0,0.000147,2]
[338407075,1726600241846,-1000.0,0.000147,2]
[338407076,1726600241855,-1000.0,0.000147,2]
[338407077,1726600241864,-1000.0,0.000147,2]
[338407078,1726600241874,-1000.0,0.000147,2]
[338407079,1726600241884,-1003.24555314,0.000147,2]
[338407080,1726600241893,-1000.0,0.000147,2]
[338407081,1726600241902,-1000.0,0.000147,2]
[338407082,1726600241911,-1000.0,0.000147,2]
[338407083,1726600241923,-1000.0,0.000147,2]
[338407084,1726600241932,-1000.0,0.000147,2]
[338407085,1726600241945,-1000.0,0.000147,2]
[338407086,1726600241954,-1000.0,0.000147,2]
[338407087,1726600241963,-1000.0,0.000147,2]
[338407088,1726600241973,-1000.0,0.000147,2]
[338407089,1726600241983,-1000.0,0.000147,2]
[338407090,1726600241993,-1000.0,0.000147,2]
[338407091,1726600242002,-1000.0,0.000147,2]
[338407092,1726600242011,-1000.0,0.000147,2]
[338407093,1726600242021,-1000.0,0.000147,2]
[338407094,1726600242030,-514.7391,0.000147,2]
[338407095,1726600242039,-600.0,0.000147,5]
[338407096,1726600242048,-361.8428,0.000147,2]
[338407097,1726600242058,-11961.335445,0.0001472,2]
[338407098,1726600242067,-11961.335445,0.00014739,2]
[338407099,1726600242076,-152.390041,0.00014739,2]
[338407100,1726600242085,-151.0,0.00014739,2]
[338407101,1726600242094,-151.0,0.00014739,2]
[338407102,1726600242103,-151.0,0.00014739,2]
[338407103,1726600242113,-151.0,0.00014739,2]
[338407104,1726600242122,-151.0,0.00014739,2]
[338407105,1726600242131,-152.53933,0.00014739,2]
[338407106,1726600242140,-151.0,0.00014739,2]
[338407107,1726600242150,-152.53933,0.00014739,2]
[338407108,1726600242159,-220.722259,0.00014739,2]
[338407109,1726600242168,-220.722259,0.00014739,2]
[338407110,1726600242178,-151.0,0.00014739,2]
[338407111,1726600242187,-151.0,0.00014739,2]
[338407112,1726600242198,-159.44630465,0.0001474,2]
[338407113,1726600242207,-11961.335445,0.00014746,2]
[338407114,1726600242217,-21613.4475379,0.00014749,2]
[338407115,1726600242227,-71768.0126697,0.0001475,2]
[338407116,1726600242237,-64840.3426138,0.0001475,2]
[338407117,1726600242247,-216.22965981,0.0001475,2]
[338407118,1726600242256,-5768.58822118,0.00014756,2]
[338407119,1726600242265,-241.486086,0.00014759,2]
[338407120,1726600242275,-151.0,0.00014759,2]
[338407121,1726600242284,-151.0,0.00014759,2]
[338407122,1726600242293,-151.0,0.00014759,2]
[338407123,1726600242303,-151.0,0.00014759,2]
[338407124,1726600242312,-151.0,0.00014759,2]
[338407125,1726600242321,-152.862636,0.00014759,2]
[338407126,1726600242331,-151.0,0.00014759,2]
[338407127,1726600242341,-151.0,0.00014759,2]
[338407128,1726600242351,-151.0,0.00014759,2]
[338407129,1726600242360,-151.0,0.00014759,2]
[338407130,1726600242370,-151.0,0.00014759,2]
[338407131,1726600242380,-151.0,0.00014759,2]
[338407132,1726600242389,-151.0,0.00014759,2]
[338407133,1726600242399,-151.0,0.00014759,2]
[338407135,1726600242408,-151.546252,0.00014759,2]
[338407136,1726600242417,-151.0,0.00014759,2]
[338407137,1726600242426,-151.0,0.00014759,2]
[338407138,1726600242436,-151.0,0.00014759,2]
[338407139,1726600242447,-151.0,0.00014759,2]
[338407140,1726600242457,-151.0,0.00014759,2]
[338407142,1726600242466,-151.0,0.00014759,2]
[338407143,1726600242476,-206.19425,0.00014759,2]
[338407144,1726600242486,-151.0,0.00014759,2]
[338407145,1726600242499,-151.0,0.00014759,2]
[338407146,1726600242509,-151.0,0.00014759,2]
[338407147,1726600242519,-430.305398,0.00014759,2]
[338407148,1726600242528,-430.305398,0.00014759,2]
[338407149,1726600242538,-911.0,0.00014759,2]
[338407150,1726600242548,-151.0,0.0001476,2]
[338407151,1726600242558,-151.0,0.0001476,2]
[338407152,1726600242570,-407.225344,0.0001476,2]
[338407153,1726600242580,-151.0,0.0001476,2]
[338407154,1726600242590,-151.0,0.0001476,2]
[338407155,1726600242599,-407.225344,0.0001476,2]
[338407156,1726600242609,-151.0,0.0001476,2]
[338407157,1726600242619,-151.0,0.0001476,2]
[338407158,1726600242629,-154.879783,0.0001476,2]
[338407159,1726600242639,-161.504315,0.0001476,2]
[338407161,1726600242648,-151.0,0.0001476,2]
[338407162,1726600242657,-151.0,0.0001476,2]
[338407163,1726600242666,-151.0,0.0001476,2]
[338407164,1726600242675,-151.0,0.0001476,2]
[338407165,1726600242684,-151.0,0.0001476,2]
[338407166,1726600242693,-151.0,0.0001476,2]
[338407167,1726600242702,-333.469965,0.0001476,2]
[338407168,1726600242712,-151.0,0.0001476,2]
[338407169,1726600242721,-151.0,0.0001476,2]
[338407170,1726600242730,-333.469965,0.0001476,2]
[338407171,1726600242739,-151.0,0.0001476,2]
[338407172,1726600242749,-151.0,0.0001476,2]
[338407173,1726600242758,-163.034465,0.0001476,2]
[338407174,1726600242769,-154.280948,0.0001476,2]
[338407175,1726600242778,-163.034465,0.0001476,2]
[338407176,1726600242787,-272.222947,0.0001476,2]
[338407177,1726600242798,-272.222947,0.0001476,2]
[338407178,1726600242808,-206.600106,0.0001476,2]
[338407179,1726600242819,-206.600106,0.0001476,2]
[338407180,1726600242829,-151.0,0.0001476,2]
[338407181,1726600242838,-151.0,0.0001476,2]
[338407182,1726600242848,-919.381107,0.0001476,2]
[338407183,1726600242857,-919.381107,0.0001476,2]
[338407184,1726600242868,-151.0,0.0001476,2]
[338407185,1726600242880,-151.0,0.0001476,2]
[338407186,1726600242889,-151.0,0.0001476,2]
[338407187,1726600242900,-151.0,0.0001476,2]
[338407188,1726600242910,-151.0,0.0001476,2]
[338407189,1726600242919,-236.667936,0.0001476,2]
[338407190,1726600242928,-800.374766,0.0001476,2]
[338407191,1726600242938,-236.667936,0.0001476,2]
[338407192,1726600242948,-800.374766,0.0001476,2]
[338407193,1726600242957,-151.273294,0.0001476,2]
[338407194,1726600242968,-151.0,0.0001476,2]
[338407195,1726600242978,-3363.947764,0.0001476,2]
[338407197,1726600242988,-206.438462,0.0001476,2]
[338407199,1726600242998,-151.0,0.0001476,2]
[338407202,1726600243007,-3363.947764,0.0001476,2]
[338407204,1726600243016,-206.438462,0.0001476,2]
[338407206,1726600243025,-153.507788,0.0001476,2]
[338407208,1726600243035,-151.656318,0.0001476,2]
[338407210,1726600243043,-151.250934,0.0001476,2]
[338407212,1726600243052,-153.150905,0.0001476,2]
[338407214,1726600243061,-2351.147903,0.0001476,2]
[338407216,1726600243074,-2351.147903,0.0001476,2]
[338407218,1726600243083,-151.0,0.0001476,2]
[338407220,1726600243092,-151.0,0.0001476,2]
[338407222,1726600243102,-151.6194,0.0001476,2]
[338407224,1726600243111,-151.0,0.0001476,2]
[338407226,1726600243120,-151.0,0.0001476,2]
[338407228,1726600243129,-152.256096,0.0001476,2]
[338407230,1726600243138,-151.0,0.0001476,2]
[338407232,1726600243148,-21613.4475379,0.0001476,2]
[338407234,1726600243157,-6960.1857347,0.0001476,2]
[338407236,1726600243166,-237747.922917,0.0001477,2]
[338407238,1726600243176,-151.0,0.0001477,2]
[338407240,1726600243185,-151.0,0.0001477,2]
[338407242,1726600243196,-151.0,0.0001477,2]
[338407244,1726600243206,-151.0,0.0001477,2]
[338407246,1726600243215,-151.0,0.0001477,2]
[338407248,1726600243224,-151.0,0.0001477,2]
[338407250,1726600243234,-151.0,0.0001477,2]
[338407252,1726600243243,-151.0,0.0001477,2]
[338407254,1726600243252,-151.0,0.0001477,2]
[338407256,1726600243262,-151.981497,0.0001477,2]
[338407258,1726600243271,-151.0,0.0001477,2]
[338407260,1726600243280,-151.0,0.0001477,2]
[338407262,1726600243290,-151.0,0.0001477,2]
[338407264,1726600243299,-151.0,0.0001477,2]
[338407266,1726600243309,-151.0,0.0001477,2]
[338407268,1726600243318,-161.837281,0.0001477,2]
[338407270,1726600243327,-151.0,0.0001477,2]
[338407272,1726600243337,-151.0,0.0001477,2]
[338407274,1726600243346,-151.0,0.0001477,2]
[338407276,1726600243355,-151.0,0.0001477,2]
[338407278,1726600243365,-151.0,0.0001477,2]
[338407280,1726600243374,-151.0,0.0001477,2]
[338407282,1726600243384,-151.0,0.0001477,2]
[338407284,1726600243394,-151.0,0.0001477,2]
[338407286,1726600243404,-206.19425,0.0001477,2]
[338407288,1726600243413,-151.0,0.0001477,2]
[338407290,1726600243423,-151.0,0.0001477,2]
[338407292,1726600243432,-151.0,0.0001477,2]
[338407293,1726600243444,-430.305398,0.0001477,2]
[338407295,1726600243453,-430.305398,0.0001477,2]
[338407297,1726600243463,-151.0,0.0001477,2]
[338407299,1726600243473,-219.045809,0.0001477,2]
[338407301,1726600243483,-425.04,0.0001477,2]
[338407304,1726600243495,-151.0,0.0001477,2]
[338407306,1726600243507,-425.04,0.0001477,2]
[338407308,1726600243517,-151.0,0.0001477,2]
[338407310,1726600243526,-151.0,0.0001477,2]
[338407312,1726600243536,-286.190872,0.0001477,2]
[338407314,1726600243546,-151.0,0.0001477,2]
[338407316,1726600243556,-151.0,0.0001477,2]
[338407318,1726600243566,-151.0,0.0001477,2]
[338407320,1726600243576,-151.0,0.0001477,2]
[338407322,1726600243585,-151.0,0.0001477,2]
[338407323,1726600243594,-559.203456,0.0001477,2]
[338407325,1726600243603,-559.203456,0.0001477,2]
[338407327,1726600243612,-151.107734,0.0001477,2]
[338407330,1726600243623,-151.107734,0.0001477,2]
[338407332,1726600243633,-151.0,0.0001477,2]
[338407334,1726600243643,-151.0,0.0001477,2]
[338407336,1726600243655,-293.112902,0.0001477,2]
[338407338,1726600243664,-151.0,0.0001477,2]
[338407340,1726600243673,-956.834415,0.0001477,2]
[338407342,1726600243683,-956.834415,0.0001477,2]
[338407343,1726600243694,-151.0,0.0001477,2]
[338407345,1726600243712,-151.0,0.0001477,2]
[338407347,1726600243722,-151.0,0.0001477,2]
[338407349,1726600243731,-162.244306,0.0001477,2]
[338407351,1726600243741,-151.0,0.0001477,2]
[338407353,1726600243751,-152.53933,0.0001477,2]
[338407355,1726600243761,-152.53933,0.0001477,2]
[338407357,1726600243770,-151.0,0.0001477,2]
[338407359,1726600243779,-220.722259,0.0001477,2]
[338407361,1726600243788,-220.722259,0.0001477,2]
[338407362,1726600243798,-151.0,0.0001477,2]
[338407364,1726600243807,-151.54771,0.0001477,2]
[338407366,1726600243817,-86453.7901518,0.0001477,2]
[338407368,1726600243826,-151.0,0.0001477,2]
[338407370,1726600243835,-155.462587,0.0001477,2]
[338407372,1726600243844,-500.0,0.00014773,2]
[338407374,1726600243853,-468472.56480905,0.0001478,2]
[338407376,1726600243862,-100079.70606869,0.0001478,2]
[338407377,1726600243871,-344654.37731666,0.0001478,2]
[338407379,1726600243880,-380281.89851631,0.0001478,2]
[338407381,1726600243889,-151.0,0.0001478,2]
[338407383,1726600243899,-151.0,0.0001478,2]
[338407385,1726600243908,-151.0,0.0001478,2]
[338407387,1726600243917,-151.0,0.0001478,2]
[338407389,1726600243927,-151.0,0.0001478,2]
[338407391,1726600243936,-151.0,0.0001478,2]
[338407393,1726600243949,-151.0,0.0001478,2]
[338407395,1726600243958,-151.0,0.0001478,2]
[338407397,1726600243969,-151.0,0.0001478,2]
[338407399,1726600243978,-151.0,0.0001478,2]
[338407401,1726600243987,-233.68272,0.0001478,2]
[338407403,1726600243996,-151.0,0.0001478,2]
[338407405,1726600244006,-151.0,0.0001478,2]
[338407407,1726600244015,-151.0,0.0001478,2]
[338407409,1726600244025,-151.0,0.0001478,2]
[338407411,1726600244034,-151.0,0.0001478,2]
[338407413,1726600244044,-151.0,0.0001478,2]
[338407415,1726600244054,-151.0,0.0001478,2]
[338407417,1726600244064,-151.0,0.0001478,2]
[338407419,1726600244074,-151.0,0.0001478,2]
[338407422,1726600244083,-151.0,0.0001478,2]
[338407424,1726600244094,-151.0,0.0001478,2]
[338407426,1726600244103,-151.0,0.0001478,2]
[338407428,1726600244113,-151.0,0.0001478,2]
[338407430,1726600244122,-151.0,0.0001478,2]
[338407432,1726600244132,-151.0,0.0001478,2]
[338407434,1726600244141,-151.0,0.0001478,2]
[338407436,1726600244150,-167.30561,0.0001478,2]
[338407438,1726600244159,-151.0,0.0001478,2]
[338407440,1726600244169,-151.0,0.0001478,2]
[338407442,1726600244178,-151.0,0.0001478,2]
[338407444,1726600244187,-151.0,0.0001478,2]
[338407446,1726600244199,-151.0,0.0001478,2]
[338407448,1726600244209,-151.0,0.0001478,2]
[338407450,1726600244219,-151.0,0.0001478,2]
[338407452,1726600244228,-151.0,0.0001478,2]
[338407454,1726600244238,-151.545253,0.0001478,2]
[338407456,1726600244247,-151.0,0.0001478,2]
[338407458,1726600244257,-151.0,0.0001478,2]
[338407461,1726600244267,-151.0,0.0001478,2]
[338407463,1726600244276,-151.0,0.0001478,2]
[338407465,1726600244286,-151.0,0.0001478,2]
[338407467,1726600244295,-151.0,0.0001478,2]
[338407469,1726600244305,-151.0,0.0001478,2]
[338407471,1726600244315,-151.0,0.0001478,2]
[338407473,1726600244324,-151.0,0.0001478,2]
[338407474,1726600244334,-151.0,0.0001478,2]
[338407476,1726600244343,-151.0,0.0001478,2]
[338407478,1726600244352,-151.0,0.0001478,2]
[338407481,1726600244362,-151.0,0.0001478,2]
[338407483,1726600244371,-151.0,0.0001478,2]
[338407485,1726600244381,-151.0,0.0001478,2]
[338407487,1726600244390,-151.0,0.0001478,2]
[338407489,1726600244399,-151.0,0.0001478,2]
[338407491,1726600244408,-151.0,0.0001478,2]
[338407492,1726600244417,-151.0,0.0001478,2]
[338407495,1726600244427,-151.0,0.0001478,2]
[338407497,1726600244436,-151.0,0.0001478,2]
[338407499,1726600244447,-151.0,0.0001478,2]
[338407501,1726600244456,-151.0,0.0001478,2]
[338407503,1726600244467,-151.0,0.0001478,2]
[338407505,1726600244476,-151.0,0.0001478,2]
[338407507,1726600244485,-151.0,0.0001478,2]
[338407509,1726600244496,-151.0,0.0001478,2]
[338407511,1726600244506,-151.0,0.0001478,2]
[338407513,1726600244515,-151.0,0.0001478,2]
[338407515,1726600244524,-151.0,0.0001478,2]
[338407517,1726600244533,-151.0,0.0001478,2]
[338407519,1726600244543,-206.19425,0.0001478,2]
[338407521,1726600244552,-206.19425,0.0001478,2]
[338407523,1726600244561,-151.0,0.0001478,2]
[338407525,1726600244571,-206.19425,0.0001478,2]
[338407527,1726600244580,-151.0,0.0001478,2]
[338407529,1726600244589,-151.0,0.0001478,2]
[338407531,1726600244598,-151.0,0.0001478,2]
[338407533,1726600244608,-151.0,0.0001478,2]
[338407535,1726600244619,-161.255498,0.0001478,2]
[338407537,1726600244628,-151.0,0.0001478,2]
[338407539,1726600244638,-151.0,0.0001478,2]
[338407541,1726600244647,-151.0,0.0001478,2]
[338407543,1726600244656,-430.305398,0.0001478,2]
[338407545,1726600244666,-430.305398,0.0001478,2]
[338407547,1726600244676,-430.305398,0.0001478,2]
[338407549,1726600244685,-430.305398,0.0001478,2]
[338407551,1726600244696,-430.305398,0.0001478,2]
[338407553,1726600244705,-430.305398,0.0001478,2]
[338407555,1726600244715,-151.900992,0.0001478,2]
[338407557,1726600244724,-425.04,0.0001478,2]
[338407559,1726600244734,-425.04,0.0001478,2]
[338407561,1726600244743,-425.04,0.0001478,2]
[338407563,1726600244753,-151.0,0.0001478,2]
[338407565,1726600244762,-151.0,0.0001478,2]
[338407567,1726600244771,-425.04,0.0001478,2]
[338407569,1726600244781,-151.0,0.0001478,2]
[338407571,1726600244790,-425.04,0.0001478,2]
[338407573,1726600244799,-425.04,0.0001478,2]
[338407575,1726600244808,-151.0,0.0001478,2]
[338407577,1726600244817,-151.0,0.0001478,2]
[338407579,1726600244827,-235.66511323,0.0001478,2]
[338407581,1726600244836,-151.0,0.0001478,2]
[338407583,1726600244846,-151.0,0.0001478,2]
[338407585,1726600244855,-151.0,0.0001478,2]
[338407587,1726600244865,-151.0,0.0001478,2]
[338407589,1726600244874,-151.0,0.0001478,2]
[338407591,1726600244883,-151.0,0.0001478,2]
[338407593,1726600244893,-151.0,0.0001478,2]
[338407595,1726600244903,-151.0,0.0001478,2]
[338407597,1726600244912,-151.0,0.0001478,2]
[338407600,1726600244922,-151.0,0.0001478,2]
[338407602,1726600244932,-151.0,0.0001478,2]
[338407604,1726600244942,-151.0,0.0001478,2]
[338407605,1726600244952,-151.0,0.0001478,2]
[338407607,1726600244961,-151.0,0.0001478,2]
[338407610,1726600244971,-151.0,0.0001478,2]
[338407612,1726600244980,-151.0,0.0001478,2]
[338407614,1726600244990,-151.0,0.0001478,2]
[338407616,1726600244999,-151.0,0.0001478,2]
[338407618,1726600245008,-559.203456,0.0001478,2]
[338407620,1726600245018,-559.203456,0.0001478,2]
[338407622,1726600245027,-559.203456,0.0001478,2]
[338407624,1726600245037,-559.203456,0.0001478,2]
[338407626,1726600245047,-559.203456,0.0001478,2]
[338407628,1726600245056,-559.203456,0.0001478,2]
[338407630,1726600245065,-151.107734,0.0001478,2]
[338407632,1726600245075,-151.107734,0.0001478,2]
[338407634,1726600245085,-151.107734,0.0001478,2]
[338407636,1726600245094,-151.107734,0.0001478,2]
[338407638,1726600245104,-151.107734,0.0001478,2]
[338407640,1726600245113,-151.107734,0.0001478,2]
[338407642,1726600245123,-151.0,0.0001478,2]
[338407644,1726600245132,-151.0,0.0001478,2]
[338407646,1726600245142,-151.0,0.0001478,2]
[338407648,1726600245152,-151.0,0.0001478,2]
[338407650,1726600245161,-151.0,0.0001478,2]
[338407652,1726600245170,-151.0,0.0001478,2]
[338407654,1726600245179,-233.539853,0.0001478,2]
[338407656,1726600245189,-956.834415,0.0001478,2]
[338407658,1726600245200,-956.834415,0.0001478,2]
[338407685,1726600245470,-956.834415,0.0001478,2]
[338407686,1726600245479,-956.834415,0.0001478,2]
[338407687,1726600245489,-956.834415,0.0001478,2]
[338407689,1726600245500,-956.834415,0.0001478,2]
[338407691,1726600245510,-151.0,0.0001478,2]
[338407693,1726600245519,-151.0,0.0001478,2]
[338407694,1726600245528,-151.0,0.0001478,2]
[338407695,1726600245538,-151.71854,0.0001478,2]
[338407696,1726600245547,-151.0,0.0001478,2]
[338407697,1726600245557,-151.0,0.0001478,2]
[338407698,1726600245566,-155.92058,0.0001478,2]
[338407699,1726600245576,-151.0,0.0001478,2]
[338407700,1726600245586,-151.0,0.0001478,2]
[338407701,1726600245595,-151.0,0.0001478,2]
[338407702,1726600245605,-152.53933,0.0001478,2]
[338407703,1726600245614,-152.53933,0.0001478,2]
[338407705,1726600245624,-152.53933,0.0001478,2]
[338407707,1726600245634,-151.0,0.0001478,2]
[338407709,1726600245643,-152.53933,0.0001478,2]
[338407711,1726600245653,-220.722259,0.0001478,2]
[338407713,1726600245663,-183.58557,0.0001478,2]
[338407715,1726600245672,-152.53933,0.0001478,2]
[338407717,1726600245682,-220.722259,0.0001478,2]
[338407719,1726600245692,-152.53933,0.0001478,2]
[338407721,1726600245702,-220.722259,0.0001478,2]
[338407723,1726600245711,-220.722259,0.0001478,2]
[338407725,1726600245720,-220.722259,0.0001478,2]
[338407727,1726600245730,-220.722259,0.0001478,2]
[338407729,1726600245739,-151.0,0.0001478,2]
[338407731,1726600245749,-151.0,0.0001478,2]
[338407733,1726600245758,-151.0,0.0001478,2]
[338407734,1726600245767,-151.0,0.0001478,2]
[338407736,1726600245777,-151.0,0.0001478,2]
[338407738,1726600245786,-151.0,0.0001478,2]
[338407740,1726600245795,-151.0,0.0001478,2]
[338407742,1726600245804,-151.0,0.0001478,2]
[338407744,1726600245815,-151.0,0.0001478,2]
[338407746,1726600245824,-407.225344,0.0001478,2]
[338407747,1726600245834,-407.225344,0.0001478,2]
[338407749,1726600245843,-407.225344,0.0001478,2]
[338407751,1726600245853,-179.396477,0.0001478,2]
[338407753,1726600245862,-151.0,0.0001478,2]
[338407755,1726600245871,-151.0,0.0001478,2]
[338407757,1726600245881,-151.0,0.0001478,2]
[338407759,1726600245890,-407.225344,0.0001478,2]
[338407761,1726600245899,-407.225344,0.0001478,2]
[338407763,1726600245909,-407.225344,0.0001478,2]
[338407765,1726600245918,-151.0,0.0001478,2]
[338407767,1726600245928,-151.0,0.0001478,2]
[338407769,1726600245938,-151.0,0.0001478,2]
[338407771,1726600245948,-154.41368,0.0001478,2]
[338407773,1726600245958,-151.0,0.0001478,2]
[338407775,1726600245968,-151.0,0.0001478,2]
[338407777,1726600245978,-151.0,0.0001478,2]
[338407779,1726600245989,-151.0,0.0001478,2]
[338407781,1726600245998,-151.0,0.0001478,2]
[338407783,1726600246008,-151.0,0.0001478,2]
[338407785,1726600246017,-151.0,0.0001478,2]
[338407787,1726600246026,-151.0,0.0001478,2]
[338407789,1726600246037,-151.0,0.0001478,2]
[338407791,1726600246047,-151.0,0.0001478,2]
[338407793,1726600246057,-151.0,0.0001478,2]
[338407795,1726600246067,-151.0,0.0001478,2]
[338407797,1726600246078,-151.0,0.0001478,2]
[338407800,1726600246087,-151.0,0.0001478,2]
[338407802,1726600246098,-151.0,0.0001478,2]
[338407804,1726600246107,-151.0,0.0001478,2]
[338407806,1726600246117,-151.0,0.0001478,2]
[338407808,1726600246126,-151.0,0.0001478,2]
[338407809,1726600246136,-333.469965,0.0001478,2]
[338407811,1726600246145,-333.469965,0.0001478,2]
[338407813,1726600246155,-333.469965,0.0001478,2]
[338407815,1726600246164,-159.454499,0.0001478,2]
[338407817,1726600246174,-333.469965,0.0001478,2]
[338407819,1726600246184,-333.469965,0.0001478,2]
[338407821,1726600246195,-333.469965,0.0001478,2]
[338407824,1726600246205,-151.0,0.0001478,2]
[338407826,1726600246215,-151.0,0.0001478,2]
[338407828,1726600246224,-151.335747,0.0001478,2]
[338407830,1726600246235,-151.0,0.0001478,2]
[338407832,1726600246244,-254.519136,0.0001478,2]